Workbook

Sheet Feuil1
A1: =RANDBETWEEN(1,6) -> 1 | B1: =RANDBETWEEN(1,6) -> 3 | C1: 4 | D1: 5 | E1: 6 | F1: 6 | G1: 2 | H1: 5 | I1: 4 | J1: 1
A2: =RANDBETWEEN(1,6) -> 2 | B2: 2 | C2: 1 | D2: 6 | E2: 1 | F2: 5 | G2: 3 | H2: 3 | I2: 2 | J2: 3
A3: 1 | B3: 2 | C3: 1 | D3: 4 | E3: 1 | F3: 4 | G3: 2 | H3: 3 | I3: 3 | J3: 1
A4: 5 | B4: 2 | C4: 2 | D4: 5 | E4: 4 | F4: 4 | G4: 6 | H4: 3 | I4: 5 | J4: 6 | L4: =COUNTIF(A1:J10,4)/100 -> 0.12 | M4: =COUNTIF(A1:J10,4)/100 -> 0.12 | N4: =COUNTIF(A1:J10,4)/100 -> 0.12 | O4: =COUNTIF(A1:J10,4)/100 -> 0.12 | P4: =COUNTIF(A1:J10,4)/100 -> 0.12 | Q4: =COUNTIF(A1:J10,4)/100 -> 0.12 | R4: =COUNTIF(A1:J10,4)/100 -> 0.12 | S4: =COUNTIF(A1:J10,4)/100 -> 0.12 | T4: =COUNTIF(A1:J10,4)/100 -> 0.12 | U4: =COUNTIF(A1:J10,4)/100 -> 0.12 | V4: =COUNTIF(A1:J10,4)/100 -> 0.12 | W4: =COUNTIF(A1:J10,4)/100 -> 0.12 | X4: =COUNTIF(A1:J10,4)/100 -> 0.12 | Y4: =COUNTIF(A1:J10,4)/100 -> 0.12 | Z4: =COUNTIF(A1:J10,4)/100 -> 0.12 | AA4: =COUNTIF(A1:J10,4)/100 -> 0.12 | AB4: =COUNTIF(A1:J10,4)/100 -> 0.12 | AC4: =COUNTIF(A1:J10,4)/100 -> 0.12 | AD4: =COUNTIF(A1:J10,4)/100 -> 0.12 | AE4: =COUNTIF(A1:J10,4)/100 -> 0.12 | AF4: =COUNTIF(A1:J10,4)/100 -> 0.12 | AG4: =COUNTIF(A1:J10,4)/100 -> 0.12 | AH4: =COUNTIF(A1:J10,4)/100 -> 0.12 | AI4: =COUNTIF(A1:J10,4)/100 -> 0.12 | AJ4: =COUNTIF(A1:J10,4)/100 -> 0.12 | AK4: =COUNTIF(A1:J10,4)/100 -> 0.12 | AL4: =COUNTIF(A1:J10,4)/100 -> 0.12 | AM4: =COUNTIF(A1:J10,4)/100 -> 0.12 | AN4: =COUNTIF(A1:J10,4)/100 -> 0.12 | AO4: =COUNTIF(A1:J10,4)/100 -> 0.12 | AP4: =COUNTIF(A1:J10,4)/100 -> 0.12 | AQ4: =COUNTIF(A1:J10,4)/100 -> 0.12 | AR4: =COUNTIF(A1:J10,4)/100 -> 0.12 | AS4: =COUNTIF(A1:J10,4)/100 -> 0.12 | AT4: =COUNTIF(A1:J10,4)/100 -> 0.12 | AU4: =COUNTIF(A1:J10,4)/100 -> 0.12 | AV4: =COUNTIF(A1:J10,4)/100 -> 0.12 | AW4: =COUNTIF(A1:J10,4)/100 -> 0.12 | AX4: =COUNTIF(A1:J10,4)/100 -> 0.12 | AY4: =COUNTIF(A1:J10,4)/100 -> 0.12 | AZ4: =COUNTIF(A1:J10,4)/100 -> 0.12 | BA4: =COUNTIF(A1:J10,4)/100 -> 0.12 | BB4: =COUNTIF(A1:J10,4)/100 -> 0.12 | BC4: =COUNTIF(A1:J10,4)/100 -> 0.12 | BD4: =COUNTIF(A1:J10,4)/100 -> 0.12 | BE4: =COUNTIF(A1:J10,4)/100 -> 0.12 | BF4: =COUNTIF(A1:J10,4)/100 -> 0.12 | BG4: =COUNTIF(A1:J10,4)/100 -> 0.12 | BH4: =COUNTIF(A1:J10,4)/100 -> 0.12 | BI4: =COUNTIF(A1:J10,4)/100 -> 0.12 | BJ4: =COUNTIF(A1:J10,4)/100 -> 0.12 | BK4: =COUNTIF(A1:J10,4)/100 -> 0.12 | BL4: =COUNTIF(A1:J10,4)/100 -> 0.12 | BM4: =COUNTIF(A1:J10,4)/100 -> 0.12 | BN4: =COUNTIF(A1:J10,4)/100 -> 0.12 | BO4: =COUNTIF(A1:J10,4)/100 -> 0.12 | BP4: =COUNTIF(A1:J10,4)/100 -> 0.12 | BQ4: =COUNTIF(A1:J10,4)/100 -> 0.12 | BR4: =COUNTIF(A1:J10,4)/100 -> 0.12 | BS4: =COUNTIF(A1:J10,4)/100 -> 0.12 | BT4: =COUNTIF(A1:J10,4)/100 -> 0.12 | BU4: =COUNTIF(A1:J10,4)/100 -> 0.12 | BV4: =COUNTIF(A1:J10,4)/100 -> 0.12 | BW4: =COUNTIF(A1:J10,4)/100 -> 0.12 | BX4: =COUNTIF(A1:J10,4)/100 -> 0.12 | BY4: =COUNTIF(A1:J10,4)/100 -> 0.12 | BZ4: =COUNTIF(A1:J10,4)/100 -> 0.12 | CA4: =COUNTIF(A1:J10,4)/100 -> 0.12 | CB4: =COUNTIF(A1:J10,4)/100 -> 0.12 | CC4: =COUNTIF(A1:J10,4)/100 -> 0.12 | CD4: =COUNTIF(A1:J10,4)/100 -> 0.12 | CE4: =COUNTIF(A1:J10,4)/100 -> 0.12 | CF4: =COUNTIF(A1:J10,4)/100 -> 0.12 | CG4: =COUNTIF(A1:J10,4)/100 -> 0.12 | CH4: =COUNTIF(A1:J10,4)/100 -> 0.12 | CI4: =COUNTIF(A1:J10,4)/100 -> 0.12 | CJ4: =COUNTIF(A1:J10,4)/100 -> 0.12 | CK4: =COUNTIF(A1:J10,4)/100 -> 0.12 | CL4: =COUNTIF(A1:J10,4)/100 -> 0.12 | CM4: =COUNTIF(A1:J10,4)/100 -> 0.12 | CN4: =COUNTIF(A1:J10,4)/100 -> 0.12 | CO4: =COUNTIF(A1:J10,4)/100 -> 0.12 | CP4: =COUNTIF(A1:J10,4)/100 -> 0.12 | CQ4: =COUNTIF(A1:J10,4)/100 -> 0.12 | CR4: =COUNTIF(A1:J10,4)/100 -> 0.12 | CS4: =COUNTIF(A1:J10,4)/100 -> 0.12 | CT4: =COUNTIF(A1:J10,4)/100 -> 0.12 | CU4: =COUNTIF(A1:J10,4)/100 -> 0.12 | CV4: =COUNTIF(A1:J10,4)/100 -> 0.12 | CW4: =COUNTIF(A1:J10,4)/100 -> 0.12 | CX4: =COUNTIF(A1:J10,4)/100 -> 0.12 | CY4: =COUNTIF(A1:J10,4)/100 -> 0.12 | CZ4: =COUNTIF(A1:J10,4)/100 -> 0.12 | DA4: =COUNTIF(A1:J10,4)/100 -> 0.12 | DB4: =COUNTIF(A1:J10,4)/100 -> 0.12 | DC4: =COUNTIF(A1:J10,4)/100 -> 0.12 | DD4: =COUNTIF(A1:J10,4)/100 -> 0.12 | DE4: =COUNTIF(A1:J10,4)/100 -> 0.12 | DF4: =COUNTIF(A1:J10,4)/100 -> 0.12 | DG4: =COUNTIF(A1:J10,4)/100 -> 0.12 | DH4: =COUNTIF(A1:J10,4)/100 -> 0.12
A5: 6 | B5: 2 | C5: 1 | D5: 5 | E5: 6 | F5: 4 | G5: 6 | H5: 1 | I5: 2 | J5: 6 | L5: 0.12 | M5: 0.16 | N5: 0.3 | O5: 0.24 | P5: 0.18 | Q5: 0.17 | R5: 0.16 | S5: 0.2 | T5: 0.2 | U5: 0.18 | V5: 0.17 | W5: 0.19 | X5: 0.16 | Y5: 0.19 | Z5: 0.18 | AA5: 0.13 | AB5: 0.16 | AC5: 0.19 | AD5: 0.11 | AE5: 0.13 | AF5: 0.14 | AG5: 0.16 | AH5: 0.18 | AI5: 0.23 | AJ5: 0.12 | AK5: 0.19 | AL5: 0.13 | AM5: 0.13 | AN5: 0.16 | AO5: 0.21 | AP5: 0.13 | AQ5: 0.17 | AR5: 0.17 | AS5: 0.18 | AT5: 0.11 | AU5: 0.19 | AV5: 0.15 | AW5: 0.24 | AX5: 0.13 | AY5: 0.15 | AZ5: 0.25 | BA5: 0.21 | BB5: 0.15 | BC5: 0.24 | BD5: 0.18 | BE5: 0.13 | BF5: 0.15 | BG5: 0.16 | BH5: 0.23 | BI5: 0.14 | BJ5: 0.16 | BK5: 0.16 | BL5: 0.1 | BM5: 0.16 | BN5: 0.2 | BO5: 0.21 | BP5: 0.22 | BQ5: 0.18 | BR5: 0.11 | BS5: 0.16 | BT5: 0.16 | BU5: 0.09 | BV5: 0.18 | BW5: 0.15 | BX5: 0.2 | BY5: 0.09 | BZ5: 0.1 | CA5: 0.15 | CB5: 0.16 | CC5: 0.15 | CD5: 0.12 | CE5: 0.18 | CF5: 0.19 | CG5: 0.24 | CH5: 0.17 | CI5: 0.23 | CJ5: 0.16 | CK5: 0.18 | CL5: 0.11 | CM5: 0.22 | CN5: 0.12 | CO5: 0.23 | CP5: 0.16 | CQ5: 0.13 | CR5: 0.18 | CS5: 0.19 | CT5: 0.17 | CU5: 0.25 | CV5: 0.22 | CW5: 0.19 | CX5: 0.16 | CY5: 0.14 | CZ5: 0.22 | DA5: 0.21 | DB5: 0.12 | DC5: 0.21 | DD5: 0.22 | DE5: 0.18 | DF5: 0.17 | DG5: 0.17 | DH5: 0.17
A6: 2 | B6: 6 | C6: 6 | D6: 3 | E6: 6 | F6: 4 | G6: 3 | H6: 1 | I6: 2 | J6: 4 | L6: =L5+M6 -> 17.33 | M6: =M5+N6 -> 17.21 | N6: =N5+O6 -> 17.05 | O6: =O5+P6 -> 16.75 | P6: =P5+Q6 -> 16.51 | Q6: =Q5+R6 -> 16.33 | R6: =R5+S6 -> 16.16 | S6: =S5+T6 -> 16 | T6: =T5+U6 -> 15.8 | U6: =U5+V6 -> 15.6 | V6: =V5+W6 -> 15.42 | W6: =W5+X6 -> 15.25 | X6: =X5+Y6 -> 15.06 | Y6: =Y5+Z6 -> 14.9 | Z6: =Z5+AA6 -> 14.71 | AA6: =AA5+AB6 -> 14.53 | AB6: =AB5+AC6 -> 14.4 | AC6: =AC5+AD6 -> 14.24 | AD6: =AD5+AE6 -> 14.05 | AE6: =AE5+AF6 -> 13.94 | AF6: =AF5+AG6 -> 13.81 | AG6: =AG5+AH6 -> 13.67 | AH6: =AH5+AI6 -> 13.51 | AI6: =AI5+AJ6 -> 13.33 | AJ6: =AJ5+AK6 -> 13.1 | AK6: =AK5+AL6 -> 12.98 | AL6: =AL5+AM6 -> 12.79 | AM6: =AM5+AN6 -> 12.66 | AN6: =AN5+AO6 -> 12.53 | AO6: =AO5+AP6 -> 12.37 | AP6: =AP5+AQ6 -> 12.16 | AQ6: =AQ5+AR6 -> 12.03 | AR6: =AR5+AS6 -> 11.86 | AS6: =AS5+AT6 -> 11.69 | AT6: =AT5+AU6 -> 11.51 | AU6: =AU5+AV6 -> 11.4 | AV6: =AV5+AW6 -> 11.21 | AW6: =AW5+AX6 -> 11.06 | AX6: =AX5+AY6 -> 10.82 | AY6: =AY5+AZ6 -> 10.69 | AZ6: =AZ5+BA6 -> 10.54 | BA6: =BA5+BB6 -> 10.29 | BB6: =BB5+BC6 -> 10.08 | BC6: =BC5+BD6 -> 9.93 | BD6: =BD5+BE6 -> 9.69 | BE6: =BE5+BF6 -> 9.51 | BF6: =BF5+BG6 -> 9.38 | BG6: =BG5+BH6 -> 9.23 | BH6: =BH5+BI6 -> 9.07 | BI6: =BI5+BJ6 -> 8.84 | BJ6: =BJ5+BK6 -> 8.7 | BK6: =BK5+BL6 -> 8.54 | BL6: =BL5+BM6 -> 8.38 | BM6: =BM5+BN6 -> 8.28 | BN6: =BN5+BO6 -> 8.12 | BO6: =BO5+BP6 -> 7.92 | BP6: =BP5+BQ6 -> 7.71 | BQ6: =BQ5+BR6 -> 7.49 | BR6: =BR5+BS6 -> 7.31 | BS6: =BS5+BT6 -> 7.2 | BT6: =BT5+BU6 -> 7.04 | BU6: =BU5+BV6 -> 6.88 | BV6: =BV5+BW6 -> 6.79 | BW6: =BW5+BX6 -> 6.61 | BX6: =BX5+BY6 -> 6.46 | BY6: =BY5+BZ6 -> 6.26 | BZ6: =BZ5+CA6 -> 6.17 | CA6: =CA5+CB6 -> 6.07 | CB6: =CB5+CC6 -> 5.92 | CC6: =CC5+CD6 -> 5.76 | CD6: =CD5+CE6 -> 5.61 | CE6: =CE5+CF6 -> 5.49 | CF6: =CF5+CG6 -> 5.31 | CG6: =CG5+CH6 -> 5.12 | CH6: =CH5+CI6 -> 4.88 | CI6: =CI5+CJ6 -> 4.71 | CJ6: =CJ5+CK6 -> 4.48 | CK6: =CK5+CL6 -> 4.32 | CL6: =CL5+CM6 -> 4.14 | CM6: =CM5+CN6 -> 4.03 | CN6: =CN5+CO6 -> 3.81 | CO6: =CO5+CP6 -> 3.69 | CP6: =CP5+CQ6 -> 3.46 | CQ6: =CQ5+CR6 -> 3.3 | CR6: =CR5+CS6 -> 3.17 | CS6: =CS5+CT6 -> 2.99 | CT6: =CT5+CU6 -> 2.8 | CU6: =CU5+CV6 -> 2.63 | CV6: =CV5+CW6 -> 2.38 | CW6: =CW5+CX6 -> 2.16 | CX6: =CX5+CY6 -> 1.97 | CY6: =CY5+CZ6 -> 1.81 | CZ6: =CZ5+DA6 -> 1.67 | DA6: =DA5+DB6 -> 1.45 | DB6: =DB5+DC6 -> 1.24 | DC6: =DC5+DD6 -> 1.12 | DD6: =DD5+DE6 -> 0.91 | DE6: =DE5+DF6 -> 0.69 | DF6: =DF5+DG6 -> 0.51 | DG6: =DG5+DH6 -> 0.34 | DH6: =DH5+DI6 -> 0.17
A7: 6 | B7: 3 | C7: 6 | D7: 1 | E7: 6 | F7: 3 | G7: 3 | H7: 6 | I7: 2 | J7: 5
A8: 2 | B8: 2 | C8: 1 | D8: 2 | E8: 1 | F8: 6 | G8: 5 | H8: 3 | I8: 5 | J8: 6
A9: 6 | B9: 6 | C9: 2 | D9: 3 | E9: 3 | F9: 2 | G9: 5 | H9: 5 | I9: 6 | J9: 3 | L9: =M9+100 -> 10100 | M9: =N9+100 -> 10000 | N9: =O9+100 -> 9900 | O9: =P9+100 -> 9800 | P9: =Q9+100 -> 9700 | Q9: =R9+100 -> 9600 | R9: =S9+100 -> 9500 | S9: =T9+100 -> 9400 | T9: =U9+100 -> 9300 | U9: =V9+100 -> 9200 | V9: =W9+100 -> 9100 | W9: =X9+100 -> 9000 | X9: =Y9+100 -> 8900 | Y9: =Z9+100 -> 8800 | Z9: =AA9+100 -> 8700 | AA9: =AB9+100 -> 8600 | AB9: =AC9+100 -> 8500 | AC9: =AD9+100 -> 8400 | AD9: =AE9+100 -> 8300 | AE9: =AF9+100 -> 8200 | AF9: =AG9+100 -> 8100 | AG9: =AH9+100 -> 8000 | AH9: =AI9+100 -> 7900 | AI9: =AJ9+100 -> 7800 | AJ9: =AK9+100 -> 7700 | AK9: =AL9+100 -> 7600 | AL9: =AM9+100 -> 7500 | AM9: =AN9+100 -> 7400 | AN9: =AO9+100 -> 7300 | AO9: =AP9+100 -> 7200 | AP9: =AQ9+100 -> 7100 | AQ9: =AR9+100 -> 7000 | AR9: =AS9+100 -> 6900 | AS9: =AT9+100 -> 6800 | AT9: =AU9+100 -> 6700 | AU9: =AV9+100 -> 6600 | AV9: =AW9+100 -> 6500 | AW9: =AX9+100 -> 6400 | AX9: =AY9+100 -> 6300 | AY9: =AZ9+100 -> 6200 | AZ9: =BA9+100 -> 6100 | BA9: =BB9+100 -> 6000 | BB9: =BC9+100 -> 5900 | BC9: =BD9+100 -> 5800 | BD9: =BE9+100 -> 5700 | BE9: =BF9+100 -> 5600 | BF9: =BG9+100 -> 5500 | BG9: =BH9+100 -> 5400 | BH9: =BI9+100 -> 5300 | BI9: =BJ9+100 -> 5200 | BJ9: =BK9+100 -> 5100 | BK9: =BL9+100 -> 5000 | BL9: =BM9+100 -> 4900 | BM9: =BN9+100 -> 4800 | BN9: =BO9+100 -> 4700 | BO9: =BP9+100 -> 4600 | BP9: =BQ9+100 -> 4500 | BQ9: =BR9+100 -> 4400 | BR9: =BS9+100 -> 4300 | BS9: =BT9+100 -> 4200 | BT9: =BU9+100 -> 4100 | BU9: =BV9+100 -> 4000 | BV9: =BW9+100 -> 3900 | BW9: =BX9+100 -> 3800 | BX9: =BY9+100 -> 3700 | BY9: =BZ9+100 -> 3600 | BZ9: =CA9+100 -> 3500 | CA9: =CB9+100 -> 3400 | CB9: =CC9+100 -> 3300 | CC9: =CD9+100 -> 3200 | CD9: =CE9+100 -> 3100 | CE9: =CF9+100 -> 3000 | CF9: =CG9+100 -> 2900 | CG9: =CH9+100 -> 2800 | CH9: =CI9+100 -> 2700 | CI9: =CJ9+100 -> 2600 | CJ9: =CK9+100 -> 2500 | CK9: =CL9+100 -> 2400 | CL9: =CM9+100 -> 2300 | CM9: =CN9+100 -> 2200 | CN9: =CO9+100 -> 2100 | CO9: =CP9+100 -> 2000 | CP9: =CQ9+100 -> 1900 | CQ9: =CR9+100 -> 1800 | CR9: =CS9+100 -> 1700 | CS9: =CT9+100 -> 1600 | CT9: =CU9+100 -> 1500 | CU9: =CV9+100 -> 1400 | CV9: =CW9+100 -> 1300 | CW9: =CX9+100 -> 1200 | CX9: =CY9+100 -> 1100 | CY9: =CZ9+100 -> 1000 | CZ9: =DA9+100 -> 900 | DA9: =DB9+100 -> 800 | DB9: =DC9+100 -> 700 | DC9: =DD9+100 -> 600 | DD9: =DE9+100 -> 500 | DE9: =DF9+100 -> 400 | DF9: =DG9+100 -> 300 | DG9: =DH9+100 -> 200 | DH9: =DI9+100 -> 100
A10: 2 | B10: 1 | C10: 3 | D10: 6 | E10: 4 | F10: 5 | G10: 4 | H10: 6 | I10: 3 | J10: 4 | L10: =L6/L9*100 -> 0.1715841584 | M10: =M6/M9*100 -> 0.1721 | N10: =N6/N9*100 -> 0.1722222222 | O10: =O6/O9*100 -> 0.1709183673 | P10: =P6/P9*100 -> 0.1702061856 | Q10: =Q6/Q9*100 -> 0.1701041667 | R10: =R6/R9*100 -> 0.1701052632 | S10: =S6/S9*100 -> 0.170212766 | T10: =T6/T9*100 -> 0.1698924731 | U10: =U6/U9*100 -> 0.1695652174 | V10: =V6/V9*100 -> 0.1694505495 | W10: =W6/W9*100 -> 0.1694444444 | X10: =X6/X9*100 -> 0.1692134831 | Y10: =Y6/Y9*100 -> 0.1693181818 | Z10: =Z6/Z9*100 -> 0.1690804598 | AA10: =AA6/AA9*100 -> 0.1689534884 | AB10: =AB6/AB9*100 -> 0.1694117647 | AC10: =AC6/AC9*100 -> 0.1695238095 | AD10: =AD6/AD9*100 -> 0.1692771084 | AE10: =AE6/AE9*100 -> 0.17 | AF10: =AF6/AF9*100 -> 0.1704938272 | AG10: =AG6/AG9*100 -> 0.170875 | AH10: =AH6/AH9*100 -> 0.1710126582 | AI10: =AI6/AI9*100 -> 0.1708974359 | AJ10: =AJ6/AJ9*100 -> 0.1701298701 | AK10: =AK6/AK9*100 -> 0.1707894737 | AL10: =AL6/AL9*100 -> 0.1705333333 | AM10: =AM6/AM9*100 -> 0.1710810811 | AN10: =AN6/AN9*100 -> 0.1716438356 | AO10: =AO6/AO9*100 -> 0.1718055556 | AP10: =AP6/AP9*100 -> 0.1712676056 | AQ10: =AQ6/AQ9*100 -> 0.1718571429 | AR10: =AR6/AR9*100 -> 0.171884058 | AS10: =AS6/AS9*100 -> 0.1719117647 | AT10: =AT6/AT9*100 -> 0.1717910448 | AU10: =AU6/AU9*100 -> 0.1727272727 | AV10: =AV6/AV9*100 -> 0.1724615385 | AW10: =AW6/AW9*100 -> 0.1728125 | AX10: =AX6/AX9*100 -> 0.1717460317 | AY10: =AY6/AY9*100 -> 0.1724193548 | AZ10: =AZ6/AZ9*100 -> 0.1727868852 | BA10: =BA6/BA9*100 -> 0.1715 | BB10: =BB6/BB9*100 -> 0.1708474576 | BC10: =BC6/BC9*100 -> 0.1712068966 | BD10: =BD6/BD9*100 -> 0.17 | BE10: =BE6/BE9*100 -> 0.1698214286 | BF10: =BF6/BF9*100 -> 0.1705454545 | BG10: =BG6/BG9*100 -> 0.1709259259 | BH10: =BH6/BH9*100 -> 0.1711320755 | BI10: =BI6/BI9*100 -> 0.17 | BJ10: =BJ6/BJ9*100 -> 0.1705882353 | BK10: =BK6/BK9*100 -> 0.1708 | BL10: =BL6/BL9*100 -> 0.1710204082 | BM10: =BM6/BM9*100 -> 0.1725 | BN10: =BN6/BN9*100 -> 0.1727659574 | BO10: =BO6/BO9*100 -> 0.172173913 | BP10: =BP6/BP9*100 -> 0.1713333333 | BQ10: =BQ6/BQ9*100 -> 0.1702272727 | BR10: =BR6/BR9*100 -> 0.17 | BS10: =BS6/BS9*100 -> 0.1714285714 | BT10: =BT6/BT9*100 -> 0.1717073171 | BU10: =BU6/BU9*100 -> 0.172 | BV10: =BV6/BV9*100 -> 0.1741025641 | BW10: =BW6/BW9*100 -> 0.1739473684 | BX10: =BX6/BX9*100 -> 0.1745945946 | BY10: =BY6/BY9*100 -> 0.1738888889 | BZ10: =BZ6/BZ9*100 -> 0.1762857143 | CA10: =CA6/CA9*100 -> 0.1785294118 | CB10: =CB6/CB9*100 -> 0.1793939394 | CC10: =CC6/CC9*100 -> 0.18 | CD10: =CD6/CD9*100 -> 0.1809677419 | CE10: =CE6/CE9*100 -> 0.183 | CF10: =CF6/CF9*100 -> 0.1831034483 | CG10: =CG6/CG9*100 -> 0.1828571429 | CH10: =CH6/CH9*100 -> 0.1807407407 | CI10: =CI6/CI9*100 -> 0.1811538462 | CJ10: =CJ6/CJ9*100 -> 0.1792 | CK10: =CK6/CK9*100 -> 0.18 | CL10: =CL6/CL9*100 -> 0.18 | CM10: =CM6/CM9*100 -> 0.1831818182 | CN10: =CN6/CN9*100 -> 0.1814285714 | CO10: =CO6/CO9*100 -> 0.1845 | CP10: =CP6/CP9*100 -> 0.1821052632 | CQ10: =CQ6/CQ9*100 -> 0.1833333333 | CR10: =CR6/CR9*100 -> 0.1864705882 | CS10: =CS6/CS9*100 -> 0.186875 | CT10: =CT6/CT9*100 -> 0.1866666667 | CU10: =CU6/CU9*100 -> 0.1878571429 | CV10: =CV6/CV9*100 -> 0.1830769231 | CW10: =CW6/CW9*100 -> 0.18 | CX10: =CX6/CX9*100 -> 0.1790909091 | CY10: =CY6/CY9*100 -> 0.181 | CZ10: =CZ6/CZ9*100 -> 0.1855555556 | DA10: =DA6/DA9*100 -> 0.18125 | DB10: =DB6/DB9*100 -> 0.1771428571 | DC10: =DC6/DC9*100 -> 0.1866666667 | DD10: =DD6/DD9*100 -> 0.182 | DE10: =DE6/DE9*100 -> 0.1725 | DF10: =DF6/DF9*100 -> 0.17 | DG10: =DG6/DG9*100 -> 0.17 | DH10: =DH6/DH9*100 -> 0.17

Sheet Feuil2

Sheet Feuil3
